{"text_format":"1","workbook":"xlsx","n_sheets":2,"sheets":["Présentation","Radiopharmaceutiques"],"not_rendered":{"charts":0,"images":1,"macros":1,"external_links":0,"defined_names":2,"comments":0,"pivot_tables":0},"unopened":[],"bounds":{"document_bytes":16777216,"sheet_cells":100000,"rows_first":2000,"rows_last":500,"rows_between":2000,"halvings":0,"cell_chars":16384,"cell_head_chars":4096},"cells_cut":0,"cells_raw":0,"read":"whole","date_system":"1900"}

{"sheet":"Présentation","index":0,"n_rows":43,"n_cols":7,"rows_kept":43,"cut":false,"hidden":false,"merged":[[12,0,12,5],[2,4,2,5],[29,0,29,3],[30,0,30,3],[0,5,1,5],[0,1,0,4],[1,1,1,4],[2,1,2,3],[3,1,3,3],[4,1,4,3],[15,0,15,3],[16,0,16,3],[17,0,17,3],[7,0,7,5],[42,0,42,5],[18,0,18,3],[19,0,19,3],[31,0,31,3],[32,0,32,3]]}
["O:\\MEDECINE-NUCLEAIRE\\O. RIV radiothérapie interne vectorisée\\Duree Eviction RIV\\Logo CHAL.png","Calcul de durée de restriction des contacts",null,null,null,"Mise à disposition par SFPM et SFMN"]
[null,"après radiothérapie interne vectorisée  RIV"]
[null,"établi le",null,null,{"$f":"TODAY()","v":"2024-03-13"}]
["Nom",null,null,null,"Date du traitement"]
["Prénom",null,null,null,"Opérateur","BD"]
["Né-e le",null,null,null,"Appareillage","Berthold"]
[]
["Eléments obligatoires à préciser (en jaune)"]
["Radiopharmaceutique (menu déroulant)",null,null,{"$f":"IF(F9=\"Iode-131-0%-fixation\",Radiopharmaceutiques!E2,IF(F9=\"Iode-131-5%-fixation\",Radiopharmaceutiques!E3, IF(F9=\"Iode-131-25%-fixation\",Radiopharmaceutiques!E4,IF(F9=\"Iode-131-45%-fixation\",Radiopharmaceutiques!E5,\"\"))))","v":""},null,"Non défini"]
["Débit de dose à 1m (µSv/h) en sortie de chambre",null,null,null,null,{"$f":"IF(F9=\"Iode-131-Bénin\",\"X\",\"\")","v":""}]
["Taille du patient(e) (cm)"]
[null,null,null,null,null,{"$f":"IF(F9=\"Iode-131-Bénin\",2.2*E19*(E20/100)/37,F10)","v":""}]
["Eléments optionnels (en bleu)"]
[{"$f":"IF(F9=\"Non défini\", \"Période effective (j) (obligatoire à renseigner dans ce cas)\",\"Période effective (j) imposée par l'utilisateur (laisser vide sinon)\")","v":"Période effective (j) (obligatoire à renseigner dans ce cas)"}]
["Scénario utilisateur (éventuel)",null,null,null,"Temps (h)","Distance (m)"]
["Durée à la distance X"]
["Durée à 1 m (valeur non nulle obligatoire)",null,null,null,null,1]
["Limite dosimétrique (mSv)"]
[{"$f":" IF($F$9=\"Iode-131-Bénin\", \"Dysthyroïdie - Activité administrée (MBq)\",\".\")","v":"."},null,null,null,{"$f":" IF($F$9=\"Iode-131-Bénin\", 0,\".\")","v":"."},{"$f":"IF(F9=\"Non défini\",IF(F14=\"\",\"Erreur\"))","v":"Erreur"}]
[{"$f":"IF($F$9=\"Iode-131-Bénin\",\"Dysthyroïdie - Taux de fixation (%)\",\".\")","v":"."},null,null,null,{"$f":" IF($F$9=\"Iode-131-Bénin\", 0,\".\")","v":"."}]
[]
[null,null,null,null,"Période effective retenue en jours :",{"$f":"IF(F14=\"\",IF(F9=\"Non défini\",\"Renseigner la période\", (VLOOKUP((F9),(Radiopharmaceutiques!$A$2:$B$15),2,0)/24)), F14)","v":"Renseigner la période"}]
[null,null,null,null,"Période effective retenue en heures :",{"$f":"IF(F19=\"Erreur\",\"\",F22*24)","v":""}]
[]
["Scénario",null,null,null,"Durée restriction (jours)","Conditions"]
["Contact avec le (la) conjoint(e) > 60 ans",null,null,null,{"$f":"IF(AND(F14=0,F19=\"Erreur\"),\"\",IF(Radiopharmaceutiques!J40<0,0,ROUND(Radiopharmaceutiques!J40,0)))","v":""},"8 h à 0,3 m et 3 h à 1 m,\n limite 15 mSv "]
["Contact avec le (la) conjoint(e) < 60 ans",null,null,null,{"$f":"IF(AND(F14=0,F19=\"Erreur\"),\"\",IF(Radiopharmaceutiques!J41<0,0,ROUND(Radiopharmaceutiques!J41,0)))","v":""},"8 h à 0,3 m et 3 h à 1 m, \nlimite 3 mSv ","Notice d'utilisation"]
["Contact avec la conjointe enceinte",null,null,null,{"$f":"IF(AND(F14=0,F19=\"Erreur\"),\"\",IF(Radiopharmaceutiques!J42<0,0,ROUND(Radiopharmaceutiques!J42,0)))","v":""},"8 h à 0,3 m et 3 h à 1 m,\n limite 1 mSv "]
["Transport en commun",null,null,null,{"$f":"IF(AND(F14=0,F19=\"Erreur\"),\"\",IF(Radiopharmaceutiques!J43<0,0,ROUND(Radiopharmaceutiques!J43,0)))","v":""},"3 h à 0,5 m, limite 1 mSv "]
["Contact avec un enfant (<3 ans) \n  au retour à la maison",null,null,null,{"$f":"IF(AND(F14=0,F19=\"Erreur\"),\"\",IF(Radiopharmaceutiques!J44<0,0,ROUND(Radiopharmaceutiques!J44,0)))","v":""},"9 h à 1 m, limite 1 mSv "]
["Contact avec un enfant (entre 3 et 11 ans)\n  au retour à la maison",null,null,null,{"$f":"IF(AND(F14=0,F19=\"Erreur\"),\"\",IF(Radiopharmaceutiques!J45<0,0,ROUND(Radiopharmaceutiques!J45,0)))","v":""},"2 h à 0,5 m et 2 h à 1 m, \nlimite 1 mSv "]
["Contact avec des collègues de travail",null,null,null,{"$f":"IF(AND(F14=0,F19=\"Erreur\"),\"\",IF(Radiopharmaceutiques!J46<0,0,ROUND(Radiopharmaceutiques!J46,0)))","v":""},"6 h à 1 m, limite 1 mSv "]
["Scénario utilisateur",null,null,null,{"$f":"IF(E17>0, IF(ISERROR(Radiopharmaceutiques!J47),\"-\", IF(Radiopharmaceutiques!J47<0,0, ROUND(Radiopharmaceutiques!J47,0))),\"-\")","v":"-"},{"$f":"CONCATENATE(E16,\" h à \",F16,\" m et \",E17,\" h à \",F17,\" m,\",CHAR(10),\" limite \",E18,\" mSv\")","v":" h à  m et  h à 1 m,\n limite  mSv"}]
["Version 1.4.5 du 30/01/2024",null,null,null,null,{"$f":"CONCATENATE(\"Heure d'impression : \", HOUR(NOW()), \" h \", MINUTE(NOW()))","v":"Heure d'impression : 13 h 46"}]
[]
["Données annexes (facultatives pour sauvegarde):"]
["Poids (en kg):"]
["Sexe (F/M/I):"]
["IMC (kg/m²):"]
["Heure de mesure du taux de fixation (h):"]
["Commentaire libre:"]
[]
["Attention: ce tableur ne tient compte que de l'exposition externe aux rayonnements ionisants. Les risques de contamination (externe et interne) doivent être gérés conformement aux recommandations."]

{"sheet":"Radiopharmaceutiques","index":1,"n_rows":47,"n_cols":12,"rows_kept":47,"cut":false,"hidden":false,"merged":[[4,7,4,11],[7,7,8,7],[13,7,14,7]]}
["Radiopharmaceutique","Periode effective en heure","Reference","Remarque","Situation clinique typique"]
["Iode-131-0%-fixation",16,"Radioprotection 2004 Vol. 39, n° 4, pages 481 à 492     DOI: 10.1051/radiopro:2004012",null,"Cancer opéré"]
["Iode-131-5%-fixation",16,"Radioprotection 2004 Vol. 39, n° 4, pages 481 à 492     DOI: 10.1051/radiopro:2004012","en considérant la période au niveau de la thyroïde","Cancer oligo-métastasé"]
["Iode-131-25%-fixation",16,"Radioprotection 2004 Vol. 39, n° 4, pages 481 à 492     DOI: 10.1051/radiopro:2004012","en considérant la période au niveau de la thyroïde","Cancer poly-métastasé"]
["Iode-131-Bénin",122.4,"Nuclear Medicine Communications 2006, 27:559–566","en considérant la période au niveau de la thyroïde","Pathologie Bénigne"]
["Radium-223",{"$f":"11.43*24","v":274.32},null,"Demi vie physique"]
["PSMA-177Lu",40,"EANM procedure guidelines for radionuclide therapy with 177Lu-labelled PSMA-ligands  2019","Valeur la plus longue proposée",null,null,null,"Description scénario","Temps (h)","Distance (m)","Limite dosimétrique (mSv)"]
["Synovectomie-90Y",{"$f":"2.67*24","v":64.08},"EANM Procedure Guidelines for Radiosynovectomy 2003","Demi vie physique",null,null,null,"Contact avec le (la) conjoint(e)",8,0.3,15,"Si age > 60 ans"]
["Synovectomie-186Re",{"$f":"3.7*24","v":88.800000000000011},"EANM Procedure Guidelines for Radiosynovectomy 2003","Demi vie physique",null,null,null,null,3,1,3,"Si age < 60 ans"]
["Synovectomie-169Er",{"$f":"9.4*24","v":225.60000000000002},"EANM Procedure Guidelines for Radiosynovectomy 2003","Demi vie physique",null,null,null,"Contact conjointe enceinte",8,0.3,1]
["Microsphères-90Y",64.2,"EANM procedure guideline for the treatment of liver cancer and liver metastases with intra-arterial radioactive compounds 2011","Demi vie physique",null,null,null,null,3,1]
["Lipiodol-131I",{"$f":"8.04*24","v":192.95999999999998},"EANM procedure guideline for the treatment of liver cancer and liver metastases with intra-arterial radioactive compounds 2011","Demi vie physique",null,null,null,"Transport en commun",3,0.5,1]
["Lutétium-177 NET",100,"Fitschen et al, Z Med Phys 2011, Levart et al, EJNMMI Phys 2019","Demi vie effective",null,null,null,"Contact avec un enfant (<3 ans) au retour à la maison",9,1,1]
["MIBG-131I",10.6,"Nucl. Med. Commun. 16 (1995) 767–772","un peu plus longue chez l'adulte que chez l'enfant",null,null,null,"Contact avec un enfant (entre 3 et 11 ans) au retour à la maison",2,0.5,1]
["Non défini",null,null,null,null,null,null,null,2,1]
[null,null,null,null,null,null,null,"Contact avec des collègues de travail",6,1,1]
[null,null,null,null,null,null,null,"Scénario distance 1",{"$f":"Présentation!E16","v":0},{"$f":"Présentation!F16","v":0},{"$f":"Présentation!E18","v":0}]
[null,null,null,null,null,null,null,"Scénario distance 2",{"$f":"Présentation!E17","v":0},{"$f":"Présentation!F17","v":1}]
[]
[]
[null,null,null,null,null,null,null,"Facteur commun",{"$f":"(Présentation!F22*24/LN(2))/(1-EXP(-(LN(2)/Présentation!F22)))","v":{"$error":"#VALUE!"}}]
[]
[null,null,null,null,null,null,null,"Paramètre commun","Facteur k"]
[]
[]
[null,null,null,null,null,null,null,{"$f":"(1-EXP(-((LN(2)/Présentation!$F$22)*(I8/24))))","v":{"$error":"#VALUE!"}},{"$f":"ATAN(Présentation!$F$11/(2*J8*100))/(Présentation!$F$11*J8/200)","v":{"$error":"#DIV/0!"}}]
[null,null,null,null,null,null,null,{"$f":"(1-EXP(-((LN(2)/Présentation!$F$22)*(I9/24))))","v":{"$error":"#VALUE!"}},1]
[null,null,null,null,null,null,null,{"$f":"(1-EXP(-((LN(2)/Présentation!$F$22)*(I12/24))))","v":{"$error":"#VALUE!"}},{"$f":"ATAN(Présentation!$F$11/(2*J12*100))/(Présentation!$F$11*J12/200)","v":{"$error":"#DIV/0!"}}]
[null,null,null,null,null,null,null,{"$f":"(1-EXP(-((LN(2)/Présentation!$F$22)*(I13/24))))","v":{"$error":"#VALUE!"}},1]
[null,null,null,null,null,null,null,{"$f":"(1-EXP(-((LN(2)/Présentation!$F$22)*(I14/24))))","v":{"$error":"#VALUE!"}},{"$f":"ATAN(Présentation!$F$11/(2*J14*100))/(Présentation!$F$11*J14/200)","v":{"$error":"#DIV/0!"}}]
[null,null,null,null,null,null,null,{"$f":"(1-EXP(-((LN(2)/Présentation!$F$22)*(I15/24))))","v":{"$error":"#VALUE!"}},1]
[null,null,null,null,null,null,null,{"$f":"(1-EXP(-((LN(2)/Présentation!$F$22)*(I16/24))))","v":{"$error":"#VALUE!"}},{"$f":"ATAN(Présentation!$F$11/(2*J16*100))/(Présentation!$F$11*J16/200)","v":{"$error":"#DIV/0!"}}]
[null,null,null,null,null,null,null,{"$f":"(1-EXP(-((LN(2)/Présentation!$F$22)*(I17/24))))","v":{"$error":"#VALUE!"}},{"$f":"ATAN(Présentation!$F$11/(2*J17*100))/(Présentation!$F$11*J17/200)","v":{"$error":"#DIV/0!"}}]
[null,null,null,null,null,null,null,{"$f":"(1-EXP(-((LN(2)/Présentation!$F$22)*(I18/24))))","v":{"$error":"#VALUE!"}},1]
[]
[]
[]
[]
[null,null,null,null,null,null,null,"Dénominateur","Ratio","Jour"]
[null,null,null,null,null,null,null,{"$f":"(H26*I26+H27*I27)*$I$21","v":{"$error":"#VALUE!"}},{"$f":"K8*1000/H40","v":{"$error":"#VALUE!"}},{"$f":"-(Présentation!$F$22/LN(2))*LN(I40/Présentation!$F$12)","v":{"$error":"#VALUE!"}}]
[null,null,null,null,null,null,null,null,{"$f":"K9*1000/H40","v":{"$error":"#VALUE!"}},{"$f":"-(Présentation!$F$22/LN(2))*LN(I41/Présentation!$F$12)","v":{"$error":"#VALUE!"}}]
[null,null,null,null,null,null,null,null,{"$f":"K10*1000/H40","v":{"$error":"#VALUE!"}},{"$f":"-(Présentation!$F$22/LN(2))*LN(I42/Présentation!$F$12)","v":{"$error":"#VALUE!"}}]
[null,null,null,null,null,null,null,{"$f":"(H28*I28)*$I$21","v":{"$error":"#VALUE!"}},{"$f":"K12*1000/H43","v":{"$error":"#VALUE!"}},{"$f":"-(Présentation!$F$22/LN(2))*LN(I43/Présentation!$F$12)","v":{"$error":"#VALUE!"}}]
[null,null,null,null,null,null,null,{"$f":"(H29*I29)*$I$21","v":{"$error":"#VALUE!"}},{"$f":"K13*1000/H44","v":{"$error":"#VALUE!"}},{"$f":"-(Présentation!$F$22/LN(2))*LN(I44/Présentation!$F$12)","v":{"$error":"#VALUE!"}}]
[null,null,null,null,null,null,null,{"$f":"(H30*I30+H31*I31)*$I$21","v":{"$error":"#VALUE!"}},{"$f":"K14*1000/H45","v":{"$error":"#VALUE!"}},{"$f":"-(Présentation!$F$22/LN(2))*LN(I45/Présentation!$F$12)","v":{"$error":"#VALUE!"}}]
[null,null,null,null,null,null,null,{"$f":"(H32*I32)*$I$21","v":{"$error":"#VALUE!"}},{"$f":"K16*1000/H46","v":{"$error":"#VALUE!"}},{"$f":"-(Présentation!$F$22/LN(2))*LN(I46/Présentation!$F$12)","v":{"$error":"#VALUE!"}}]
[null,null,null,null,null,null,null,{"$f":"(H33*I33+H34*I34)*$I$21","v":{"$error":"#VALUE!"}},{"$f":"K17*1000/H47","v":{"$error":"#VALUE!"}},{"$f":"IF(H47>0,-(Présentation!$F$22/LN(2))*LN(I47/Présentation!$F$12),\"\")","v":{"$error":"#VALUE!"}}]